bitfinex/quotes_BTCUSD_20250108
["timestamp","ask_amount","ask_price","bid_price","bid_amount"]
[1736374433497,0.210754,94898.0,94896.0,0.01250291]
[1736374433894,0.210764,94893.0,94888.0,0.01250291]
[1736374434363,0.210765,94892.0,94883.0,0.01250291]
[1736374434799,0.210778,94887.0,94883.0,0.01250291]
[1736374435001,0.210778,94887.0,94877.0,0.01250291]
[1736374435197,0.210789,94882.0,94877.0,0.01250291]
[1736374435748,0.210789,94882.0,94867.0,0.25742]
[1736374435749,0.2108,94877.0,94870.0,0.01250291]
[1736374435943,0.210807,94874.0,94868.0,0.01250291]
[1736374436160,0.210807,94874.0,94873.0,0.01250291]
[1736374436361,0.210775,94888.0,94874.0,0.1]
[1736374436583,0.210794,94880.0,94877.0,0.008]
[1736374437006,0.21129626,94880.0,94877.0,0.002]
[1736374437417,0.42209026,94880.0,94877.0,0.002]
[1736374438147,0.210805,94874.0,94873.0,0.004]
[1736374438496,0.210805,94874.0,94873.0,0.006]
[1736374438901,0.210805,94874.0,94873.0,0.004]
[1736374439107,0.210805,94874.0,94867.0,0.01250291]
[1736374439310,0.210805,94874.0,94872.0,0.01250291]
[1736374439941,0.21129626,94880.0,94872.0,0.01250291]
[1736374440134,0.42209026,94880.0,94873.0,0.002]
[1736374440387,0.00050226,94880.0,94873.0,0.106]
[1736374440587,0.00050226,94880.0,94873.0,0.006]
[1736374440792,0.00050226,94880.0,94873.0,0.102]
[1736374441061,0.09416241,94918.0,94880.0,0.1289]
[1736374441263,0.13662113,94918.0,94908.0,0.1]
[1736374441467,0.210719,94913.0,94908.0,0.1]
[1736374441661,0.210719,94913.0,94904.0,0.1]
[1736374441903,0.21071,94917.0,94908.0,0.1]
[1736374442492,0.210702,94921.0,94909.0,0.210728]
[1736374442934,0.210702,94921.0,94908.0,0.1]
[1736374443498,0.211702,94921.0,94908.0,0.1]
[1736374443703,0.422404,94921.0,94908.0,0.1]
[1736374443900,0.421404,94921.0,94908.0,0.1]
[1736374444324,0.422404,94921.0,94908.0,0.1]
[1736374444527,0.210711,94917.0,94908.0,0.1]
[1736374445327,0.20992521,94917.0,94908.0,0.1]
[1736374446154,0.20992521,94917.0,94908.0,0.101]
[1736374446362,0.21072,94913.0,94908.0,0.001]
[1736374446778,0.42144,94913.0,94908.0,0.001]
[1736374447438,0.421442,94912.0,94907.0,0.01250291]
[1736374447849,0.421442,94912.0,94897.0,0.10012134]
[1736374447850,0.210738,94905.0,94901.0,0.01250291]
[1736374448228,0.421476,94905.0,94901.0,0.01250291]
[1736374448434,0.421476,94905.0,94902.0,0.01250291]
[1736374449114,0.421476,94905.0,94901.0,0.01250291]
[1736374449411,0.210752,94898.0,94897.0,0.00012134]
[1736374449589,0.210748,94900.0,94899.0,0.01250291]
[1736374449766,0.210748,94900.0,94897.0,0.01262425]
[1736374450317,0.210748,94900.0,94897.0,0.00012134]
[1736374450520,0.421496,94900.0,94897.0,0.00012134]
[1736374451354,0.421496,94900.0,94897.0,0.00212134]
[1736374451557,0.421496,94900.0,94897.0,0.00312134]
[1736374452001,0.421496,94900.0,94897.0,0.00212134]
[1736374452358,0.210752,94898.0,94897.0,0.00212134]
[1736374452724,0.33805176,94898.0,94897.0,0.00312134]
[1736374453078,0.33805176,94898.0,94897.0,0.00212134]
[1736374453291,0.33805176,94898.0,94897.0,0.00112134]
[1736374453706,0.34305176,94898.0,94897.0,0.00112134]
[1736374454498,0.34305176,94898.0,94897.0,0.00012134]
[1736374454939,0.34505176,94898.0,94897.0,0.00012134]
[1736374456417,0.352931,94898.0,94897.0,0.00012134]
[1736374458290,0.586269,94898.0,94897.0,0.00012134]
[1736374459242,0.502931,94898.0,94897.0,0.00012134]
[1736374460957,0.561891,94898.0,94897.0,0.00012134]
[1736374462865,0.352931,94898.0,94897.0,0.00012134]
[1736374463497,0.352851,94898.0,94897.0,0.00012134]
[1736374466029,0.22555124,94898.0,94897.0,0.00012134]
[1736374467235,0.22055124,94898.0,94897.0,0.00012134]
[1736374467468,0.345851,94898.0,94897.0,0.00012134]
[1736374467668,0.351851,94898.0,94897.0,0.00012134]
[1736374467886,0.347851,94898.0,94897.0,0.00012134]
[1736374468243,0.345851,94898.0,94897.0,0.00012134]
[1736374468684,0.347851,94898.0,94897.0,0.00012134]
[1736374468848,0.352851,94898.0,94897.0,0.00012134]
[1736374469049,0.345851,94898.0,94897.0,0.00012134]
[1736374469463,0.347851,94898.0,94897.0,0.00012134]
[1736374470734,0.352851,94898.0,94897.0,0.00012134]
[1736374477577,0.007,94898.0,94897.0,0.00012134]
[1736374477822,0.007,94898.0,94897.0,0.01262425]
[1736374478281,0.005,94898.0,94897.0,0.01262425]
[1736374478516,0.005,94898.0,94897.0,0.22337825]
[1736374478754,0.00894604,94913.0,94902.0,0.01250291]
[1736374479016,0.210721,94912.0,94902.0,0.01250291]
[1736374479211,0.421443,94912.0,94902.0,0.01250291]
[1736374479447,0.210723,94911.0,94902.0,0.01250291]
[1736374479681,0.421446,94911.0,94902.0,0.01250291]
[1736374479945,0.210733,94907.0,94902.0,0.01250291]
[1736374480182,0.421466,94907.0,94902.0,0.01250291]
[1736374481586,0.424466,94907.0,94902.0,0.01250291]
[1736374486226,0.210741,94903.0,94902.0,0.01250291]
[1736374487674,0.210741,94903.0,94897.0,0.00012134]
[1736374487946,0.210752,94898.0,94897.0,0.00012134]
[1736374490088,0.210748,94900.0,94898.0,0.01250291]
[1736374492103,0.210748,94900.0,94898.0,0.01350291]
[1736374494270,0.210748,94900.0,94898.0,0.001]
[1736374494523,0.210748,94900.0,94898.0,0.01350291]
[1736374494696,0.210748,94900.0,94898.0,0.001]
[1736374497721,0.210748,94900.0,94897.0,0.00012134]
[1736374497722,0.423496,94900.0,94897.0,0.00012134]
[1736374497924,0.428496,94900.0,94897.0,0.00012134]
[1736374498057,0.233752,94898.0,94897.0,0.00012134]
[1736374498463,0.33805176,94898.0,94897.0,0.00012134]
[1736374499299,0.34205176,94898.0,94897.0,0.00012134]
[1736374500144,0.34405176,94898.0,94897.0,0.00012134]
[1736374500563,0.78845176,94898.0,94897.0,3.4e-07]
[1736374500786,0.56945176,94898.0,94897.0,3.4e-07]
[1736374500991,0.210819,94868.0,94867.0,0.09313417]
[1736374501193,0.210757,94896.0,94867.0,0.09363643]
[1736374501194,0.023,94879.0,94867.0,0.09363643]
[1736374501399,0.210815,94870.0,94867.0,0.09363643]
[1736374501623,0.42163,94870.0,94867.0,0.09363643]
[1736374501834,0.210815,94870.0,94867.0,0.09363643]
[1736374502118,0.210815,94870.0,94867.0,0.00050226]
[1736374502532,0.42163,94870.0,94867.0,0.00050226]
[1736374503385,0.43061415,94870.0,94867.0,0.00050226]
[1736374503971,0.233819,94868.0,94867.0,0.00050226]
[1736374504581,0.233819,94868.0,94867.0,0.00150226]
[1736374504785,0.233819,94868.0,94867.0,0.00050226]
[1736374504988,0.33811876,94868.0,94867.0,0.00050226]
[1736374506033,0.33811876,94868.0,94867.0,0.00031622]
[1736374506823,0.48811876,94868.0,94867.0,0.00031622]
[1736374508875,0.49111876,94868.0,94867.0,2.2e-07]
[1736374509074,0.57071876,94868.0,94867.0,2.2e-07]
[1736374509900,0.57071876,94868.0,94867.0,0.00100022]
[1736374509901,0.58371876,94868.0,94867.0,0.00100022]
[1736374510447,0.57971876,94868.0,94867.0,0.00100022]
[1736374510822,0.58571876,94868.0,94867.0,0.00100022]
[1736374511215,0.58571876,94868.0,94867.0,2.2e-07]
[1736374511216,5.65051302,94868.0,94867.0,2.2e-07]
[1736374511555,0.60051302,94868.0,94867.0,2.2e-07]
[1736374511757,0.60051302,94868.0,94838.0,0.01250291]
[1736374511758,0.210883,94839.0,94838.0,0.01250291]
[1736374512195,0.210898,94833.0,94832.0,0.01250291]
[1736374513000,0.2109879,94833.0,94832.0,0.01250291]
[1736374514509,0.2109879,94833.0,94832.0,0.01350291]
[1736374515134,0.21976071,94833.0,94832.0,0.01350291]
[1736374515625,0.22067071,94833.0,94832.0,0.01650291]
[1736374515830,0.0010899,94833.0,94832.0,0.01650291]
[1736374516008,8.99e-05,94833.0,94832.0,0.11250291]
[1736374516161,8.99e-05,94833.0,94832.0,0.11350291]
[1736374516359,8.99e-05,94833.0,94832.0,0.11450291]
[1736374516774,8.99e-05,94833.0,94832.0,0.21780267]
[1736374516974,8.99e-05,94833.0,94832.0,0.21680267]
[1736374517200,8.99e-05,94833.0,94832.0,0.21880267]
[1736374517407,8.99e-05,94833.0,94832.0,0.36880267]
[1736374517604,8.99e-05,94833.0,94832.0,0.44390267]
[1736374517807,0.210817,94869.0,94868.0,0.01250291]
[1736374518504,0.210788,94882.0,94869.0,0.210817]
[1736374518742,0.0005029,94887.0,94880.0,0.0782]
[1736374518936,0.2112799,94887.0,94880.0,0.0782]
[1736374519134,0.0005029,94887.0,94880.0,0.0782]
[1736374519316,0.2112809,94887.0,94885.0,0.01250291]
[1736374519905,0.0005029,94887.0,94885.0,0.01250291]
[1736374521266,0.0005029,94887.0,94885.0,0.01350291]
[1736374522431,0.0005029,94887.0,94885.0,0.01550291]
[1736374522627,0.210779,94886.0,94885.0,0.01550291]
[1736374523028,0.0005029,94887.0,94885.0,0.01550291]
[1736374523613,0.0005029,94887.0,94885.0,0.01450291]
[1736374524084,0.0005029,94887.0,94885.0,0.01750291]
[1736374524910,0.0005029,94887.0,94886.0,0.11250291]
[1736374527047,0.0005029,94887.0,94886.0,0.11450291]
[1736374527302,0.0005029,94887.0,94886.0,0.11550291]
[1736374527521,0.0015029,94887.0,94886.0,0.11950291]
[1736374528850,0.0005029,94887.0,94886.0,0.11550291]
[1736374529031,0.0005029,94887.0,94886.0,0.11250291]
[1736374529231,0.0015029,94887.0,94886.0,0.11650291]
[1736374529410,0.0015029,94887.0,94886.0,0.12431182]
[1736374529612,0.0025029,94887.0,94886.0,0.12831182]
[1736374529829,0.0025029,94887.0,94886.0,0.37961158]
[1736374530155,0.0025029,94887.0,94886.0,0.38261158]
[1736374531000,0.0025029,94887.0,94886.0,0.37961158]
[1736374532238,0.0005029,94887.0,94886.0,0.37561158]
[1736374532439,0.0015029,94887.0,94886.0,0.37961158]
[1736374532641,0.0015029,94887.0,94886.0,0.38261158]
[1736374536750,0.0015029,94887.0,94886.0,0.46251158]
[1736374537199,0.0015029,94887.0,94886.0,0.51121158]
[1736374537902,0.210676,94933.0,94915.0,0.32321691]
[1736374538110,0.00989008,94916.0,94915.0,0.32321691]
[1736374538458,0.00989008,94916.0,94915.0,0.47321691]
[1736374539172,0.00989008,94916.0,94915.0,0.47721691]
[1736374539376,0.00989008,94916.0,94915.0,0.47821691]
[1736374542170,0.00989008,94916.0,94915.0,0.11750291]
[1736374542452,0.00989008,94916.0,94915.0,0.01750291]
[1736374543183,0.00989008,94916.0,94915.0,0.01650291]
[1736374544496,0.00989008,94916.0,94915.0,0.01750291]
[1736374544970,0.00989008,94916.0,94915.0,0.01650291]
[1736374545446,0.00989008,94916.0,94915.0,0.01350291]
[1736374545898,0.00989008,94916.0,94915.0,0.005]
[1736374546240,0.00989008,94916.0,94915.0,0.01350291]
[1736374546287,0.00989008,94916.0,94915.0,0.001]
[1736374546646,0.00989008,94916.0,94915.0,0.005]
[1736374546647,0.13718984,94916.0,94915.0,0.005]
[1736374547502,4.76918984,94916.0,94915.0,0.005]
[1736374547706,4.81708984,94916.0,94915.0,0.005]
[1736374548119,4.81708984,94916.0,94915.0,0.001]
[1736374548326,0.210785,94883.0,94881.0,0.01250291]
[1736374548538,0.210779,94886.0,94885.0,0.01250291]
[1736374549169,0.210765,94892.0,94891.0,0.01250291]
[1736374549978,0.210765,94892.0,94890.0,0.01250291]
[1736374550125,0.210765,94892.0,94888.0,0.01250291]
[1736374550328,0.210765,94892.0,94891.0,0.01250291]
[1736374551129,0.210776,94888.0,94887.0,0.01250291]
[1736374551554,0.210776,94888.0,94880.0,0.1]
[1736374551555,0.421552,94888.0,94886.0,0.01250291]
[1736374552306,0.210776,94888.0,94886.0,0.01250291]
[1736374552464,0.210776,94888.0,94887.0,0.001]
[1736374552672,0.210773,94889.0,94887.0,0.001]
[1736374552887,0.210773,94889.0,94880.0,0.0915029]
[1736374553521,0.210773,94889.0,94877.0,0.0915029]
[1736374553725,0.22010543,94889.0,94880.0,0.0915029]
[1736374553925,0.210785,94884.0,94877.0,0.0915029]
[1736374554355,0.210777,94887.0,94880.0,0.0915029]
[1736374554507,0.210777,94887.0,94877.0,0.0915029]
[1736374554718,0.210777,94887.0,94880.0,0.0915029]
[1736374555168,0.210777,94887.0,94877.0,0.0915029]
[1736374555300,0.210787,94883.0,94875.0,0.0915029]
[1736374555514,0.210788,94882.0,94875.0,0.0915029]
[1736374558124,0.210788,94882.0,94875.0,0.0925029]
[1736374559786,0.210788,94882.0,94875.0,0.0915029]
[1736374560187,0.211788,94882.0,94875.0,0.0915029]
[1736374560408,0.212788,94882.0,94875.0,0.0915029]
[1736374561734,0.210797,94878.0,94875.0,0.0915029]
[1736374562535,0.002,94882.0,94866.0,0.0915029]
[1736374562800,0.210822,94867.0,94861.0,0.18463707]
[1736374563016,0.210822,94867.0,94859.0,0.0915029]
[1736374563017,0.210831,94863.0,94859.0,0.0915029]
[1736374563256,0.210831,94863.0,94858.0,0.09313417]
[1736374563878,0.421662,94863.0,94858.0,0.09313417]
[1736374564234,0.210832,94862.0,94859.0,0.003]
[1736374564944,0.21083,94864.0,94857.0,0.0915029]
[1736374565166,0.21083,94864.0,94858.0,0.001]
[1736374566325,0.21083,94864.0,94857.0,0.0915029]
[1736374566536,0.21083,94864.0,94858.0,0.003]
[1736374566764,0.21083,94864.0,94857.0,0.0915029]
[1736374567226,0.001,94862.0,94857.0,0.0915029]
[1736374567483,0.001,94862.0,94848.0,0.0005029]
[1736374567703,0.001,94864.0,94850.0,0.0915029]
[1736374567999,0.023,94867.0,94848.0,0.0005029]
[1736374568217,0.210853,94853.0,94848.0,0.0005029]
[1736374568689,0.023,94867.0,94851.0,0.0915029]
[1736374568920,0.12729976,94867.0,94851.0,0.0915029]
[1736374569185,0.210828,94864.0,94851.0,0.0915029]
[1736374569404,0.210837,94860.0,94851.0,0.0915029]
[1736374570330,0.210854,94853.0,94848.0,0.0005029]
[1736374571061,0.421708,94853.0,94848.0,0.0005029]
[1736374571790,0.210847,94856.0,94848.0,0.0005029]
[1736374572022,0.269638,94860.0,94848.0,0.0005029]
[1736374572023,0.211838,94860.0,94848.0,0.0005029]
[1736374572253,0.210839,94859.0,94848.0,0.0005029]
[1736374572607,0.002,94853.0,94848.0,0.0005029]
[1736374572985,0.001,94853.0,94850.0,0.06950289]
[1736374573202,0.210839,94859.0,94850.0,0.06950289]
[1736374573638,0.211839,94859.0,94850.0,0.06950289]
[1736374573951,0.210839,94859.0,94850.0,0.06950289]
[1736374574358,0.211839,94859.0,94850.0,0.06950289]
[1736374574723,0.210848,94855.0,94850.0,0.06950289]
[1736374576595,0.212848,94855.0,94850.0,0.06950289]
[1736374577429,0.212848,94855.0,94848.0,0.0005029]
[1736374577430,0.002,94855.0,94848.0,0.0005029]
[1736374577591,0.210861,94849.0,94848.0,0.0005029]
[1736374579274,0.023,94853.0,94848.0,0.0005029]
[1736374579509,0.210851,94854.0,94848.0,0.0005029]
[1736374579510,0.210854,94852.0,94848.0,0.0005029]
[1736374579964,0.210854,94852.0,94848.0,0.0015029]
[1736374580164,0.210854,94852.0,94848.0,0.0005029]
[1736374580457,0.421708,94852.0,94848.0,0.0005029]
[1736374580645,0.023,94851.0,94848.0,0.0005029]
[1736374580888,0.023,94849.0,94848.0,0.0005029]
[1736374581060,0.12729976,94849.0,94848.0,0.0005029]
[1736374581466,0.18509976,94849.0,94848.0,0.0005029]
[1736374582586,0.33509976,94849.0,94848.0,0.0005029]
[1736374582811,5.38509976,94849.0,94848.0,0.0005029]
[1736374583469,4.67109976,94849.0,94848.0,0.0005029]
[1736374583682,2.19509976,94849.0,94848.0,0.0005029]
[1736374583879,2.16065853,94849.0,94848.0,0.0005029]
[1736374584536,0.73465853,94849.0,94848.0,0.0015029]
[1736374584739,0.66665853,94849.0,94848.0,0.0015029]
[1736374585630,0.66565853,94849.0,94848.0,0.0015029]
[1736374585865,0.66965853,94849.0,94848.0,0.0015029]
[1736374586312,0.65365853,94849.0,94848.0,0.0005029]
[1736374586533,0.66765853,94849.0,94848.0,0.0015029]
[1736374588567,0.35865853,94849.0,94848.0,0.0015029]
[1736374588803,1.99465853,94849.0,94848.0,0.0015029]
[1736374589000,1.54565853,94849.0,94848.0,0.0015029]
[1736374589585,0.023,94847.0,94816.0,0.06950289]
[1736374589787,0.210921,94823.0,94816.0,0.06965371]
[1736374593300,0.21012798,94823.0,94816.0,0.06965371]
[1736374594041,0.21012798,94823.0,94816.0,0.06956064]
[1736374596131,0.21012798,94823.0,94816.0,0.06946764]
[1736374596598,0.21012798,94823.0,94816.0,0.05966764]
[1736374596835,0.21964756,94823.0,94816.0,0.05966764]
[1736374600466,0.21012798,94823.0,94816.0,0.05966764]
[1736374600711,0.210912,94826.0,94816.0,0.05966764]
[1736374601696,0.210907,94829.0,94816.0,0.05966764]
[1736374601697,0.210898,94833.0,94822.0,0.210919]
[1736374601947,0.10429976,94846.0,94832.0,0.05951682]
[1736374601948,0.210878,94842.0,94832.0,0.05951682]
[1736374602194,0.210895,94834.0,94827.0,0.05951682]
[1736374602440,0.210903,94831.0,94825.0,0.05951682]
[1736374602906,0.001,94826.0,94825.0,0.05951682]
[1736374603158,0.210898,94833.0,94825.0,0.03751681]
[1736374604020,0.001,94826.0,94825.0,0.03751681]
[1736374604542,0.210898,94833.0,94825.0,0.03751681]
[1736374605184,0.22062021,94833.0,94825.0,0.03751681]
[1736374605860,0.210907,94829.0,94825.0,0.03751681]
[1736374606800,0.210905,94830.0,94825.0,0.03751681]
[1736374607205,0.001,94829.0,94825.0,0.03751681]
[1736374607408,0.001,94829.0,94818.0,0.03751681]
[1736374607634,0.01072221,94833.0,94818.0,0.03751681]
[1736374607635,0.210916,94825.0,94818.0,0.03751681]
[1736374608269,0.210908,94828.0,94818.0,0.03751681]
[1736374608931,0.210902,94831.0,94824.0,0.03751681]
[1736374610415,0.001,94828.0,94824.0,0.03751681]
[1736374610959,0.00972221,94833.0,94825.0,0.03751681]
[1736374611111,0.003,94831.0,94825.0,0.03751681]
[1736374611330,0.004,94831.0,94825.0,0.03751681]
[1736374611738,0.001,94828.0,94825.0,0.03751681]
[1736374611939,0.210901,94832.0,94825.0,0.03751681]
[1736374612761,0.001,94833.0,94825.0,0.03751681]
[1736374612994,0.001,94833.0,94825.0,0.0155168]
[1736374613190,0.001,94831.0,94825.0,0.0155168]
[1736374613418,0.22090566,94835.0,94825.0,0.0155168]
[1736374613676,0.210902,94831.0,94825.0,0.0155168]
[1736374614394,0.211902,94831.0,94825.0,0.0155168]
[1736374615293,0.210902,94831.0,94825.0,0.0155168]
[1736374615499,0.211902,94831.0,94825.0,0.0155168]
[1736374616637,0.212902,94831.0,94825.0,0.0155168]
[1736374617710,0.210905,94829.0,94825.0,0.0155168]
[1736374619413,0.210928,94819.0,94816.0,0.01566762]
[1736374619620,0.10429976,94818.0,94816.0,0.00015082]
[1736374619820,0.612132,94817.0,94816.0,0.00015082]
[1736374620026,5.61143176,94817.0,94816.0,0.00015082]
[1736374620220,5.71143176,94817.0,94816.0,0.00015082]
[1736374620479,5.81573152,94817.0,94816.0,0.00015082]
[1736374620681,5.90021472,94817.0,94816.0,0.00115082]
[1736374620898,5.90986625,94817.0,94816.0,0.00115082]
[1736374621065,0.0844832,94810.0,94809.0,0.09198417]
[1736374621270,0.0844832,94810.0,94800.0,7e-05]
[1736374621271,0.023,94802.0,94800.0,7e-05]
[1736374621467,0.39606776,94801.0,94800.0,0.00022085]
[1736374621688,0.33826776,94801.0,94800.0,0.00022085]
[1736374621869,0.39606776,94801.0,94800.0,0.00022085]
[1736374622207,0.31526776,94801.0,94800.0,0.00022085]
[1736374622439,0.210959,94805.0,94800.0,0.00022085]
[1736374623743,0.009,94802.0,94800.0,0.00122085]
[1736374623958,0.210959,94805.0,94800.0,0.00022085]
[1736374624178,0.210964,94803.0,94800.0,0.00022085]
[1736374624604,0.421928,94803.0,94800.0,0.00022085]
[1736374625210,0.421928,94803.0,94800.0,0.00122085]
[1736374625667,0.421928,94803.0,94800.0,0.00103478]
[1736374626630,0.421928,94803.0,94800.0,3.478e-05]
[1736374628637,0.461668,94801.0,94800.0,3.478e-05]
[1736374628893,0.56596776,94801.0,94800.0,3.478e-05]
[1736374629112,5.56296776,94801.0,94800.0,3.478e-05]
[1736374629330,0.234023,94776.0,94770.0,0.12722907]
[1736374629548,0.33832276,94776.0,94775.0,0.0144586]
[1736374629751,0.211023,94776.0,94775.0,0.0144586]
[1736374630624,0.33832276,94776.0,94775.0,0.0144586]
[1736374632109,0.3483398,94776.0,94775.0,0.0144586]
[1736374632923,0.3543398,94776.0,94775.0,0.0144586]
[1736374633142,0.211035,94771.0,94770.0,0.11968766]
[1736374633357,0.211035,94771.0,94770.0,0.11983848]
[1736374633720,0.234035,94771.0,94770.0,0.11983848]
[1736374633920,0.33833476,94771.0,94770.0,0.00015082]
[1736374634329,0.33933476,94771.0,94770.0,0.00015082]
[1736374634518,0.34133476,94771.0,94770.0,0.00015082]
[1736374641406,1.07045464,94771.0,94770.0,0.00015082]
[1736374641622,0.34133476,94771.0,94770.0,0.00015082]
[1736374642322,0.34033476,94771.0,94770.0,0.00015082]
[1736374642742,0.56813476,94771.0,94770.0,0.00015082]
[1736374642944,0.66813476,94771.0,94770.0,8.2e-07]
[1736374643144,0.77243452,94771.0,94770.0,8.2e-07]
[1736374643341,0.76943452,94771.0,94770.0,8.2e-07]
[1736374643543,0.66713476,94771.0,94770.0,8.2e-07]
[1736374643799,0.66913476,94771.0,94770.0,8.2e-07]
[1736374644017,0.66713476,94771.0,94770.0,8.2e-07]
[1736374644249,0.66713476,94771.0,94734.0,0.0808]
[1736374644250,0.66713476,94771.0,94732.0,0.045]
[1736374644251,0.0844832,94760.0,94732.0,0.045]
[1736374644433,0.0844832,94760.0,94729.0,0.0155168]
[1736374644434,0.211119,94733.0,94729.0,0.0155168]
[1736374644631,0.211119,94733.0,94732.0,0.00050333]
[1736374646776,0.211119,94733.0,94732.0,0.00150333]
[1736374649155,0.211084,94749.0,94737.0,0.0155168]
[1736374649356,0.10429976,94759.0,94737.0,0.0155168]
[1736374649357,0.0101217,94752.0,94747.0,0.0155168]
[1736374649559,0.211079,94751.0,94748.0,0.0155168]
[1736374650179,0.422159,94751.0,94748.0,0.0155168]
[1736374650432,0.008,94749.0,94748.0,0.0155168]
[1736374650631,0.211086,94748.0,94747.0,0.0155168]
[1736374651038,0.211103,94741.0,94739.0,0.0155168]
[1736374651212,0.211091,94746.0,94743.0,0.0155168]
[1736374651420,0.422182,94746.0,94743.0,0.0155168]
[1736374652138,0.211091,94746.0,94743.0,0.0155168]
[1736374652828,0.422182,94746.0,94743.0,0.0155168]
[1736374653502,0.211097,94743.0,94732.0,0.00050333]
[1736374653733,0.211117,94734.0,94732.0,0.00050333]
[1736374654593,0.31541676,94734.0,94732.0,0.00050333]
[1736374656235,0.31641676,94734.0,94732.0,0.00250333]
[1736374656514,0.31641676,94734.0,94732.0,0.00050333]
[1736374656926,0.32636093,94734.0,94732.0,0.00050333]
[1736374657479,0.32936093,94734.0,94732.0,0.00050333]
[1736374658313,0.003,94734.0,94732.0,0.00050333]
[1736374658480,0.211119,94733.0,94732.0,0.00050333]
[1736374659267,0.211115,94735.0,94732.0,0.00050333]
[1736374659549,0.211119,94733.0,94732.0,0.00050333]
[1736374660077,0.212119,94733.0,94732.0,0.00050333]
[1736374660284,0.214119,94733.0,94732.0,0.00050333]
[1736374660529,0.214119,94733.0,94732.0,0.01602013]
[1736374663000,0.214119,94733.0,94724.0,0.09146215]
[1736374663238,0.214119,94733.0,94724.0,0.09161306]
[1736374664042,0.212119,94733.0,94724.0,0.09161306]
[1736374664465,0.211119,94733.0,94724.0,0.09161306]
[1736374664980,0.212119,94733.0,94724.0,0.09161306]
[1736374665402,0.214119,94733.0,94724.0,0.09161306]
[1736374666463,0.003,94733.0,94724.0,0.09161306]
[1736374666650,0.003,94733.0,94725.0,0.211137]
[1736374666906,0.003,94733.0,94724.0,0.09161306]
[1736374667327,0.003,94733.0,94725.0,0.211137]
[1736374667526,0.002,94733.0,94725.0,0.211137]
[1736374667930,0.003,94733.0,94725.0,0.211137]
[1736374668362,0.002,94733.0,94726.0,0.211135]
[1736374668572,0.002,94733.0,94724.0,0.09161306]
[1736374668573,0.002,94733.0,94730.0,0.211126]
[1736374668780,0.01019286,94743.0,94734.0,0.211116]
[1736374669197,0.211093,94745.0,94734.0,0.211116]
[1736374669609,0.01002918,94745.0,94734.0,0.211116]
[1736374669778,0.22112218,94745.0,94734.0,0.211116]
[1736374669988,0.211085,94749.0,94734.0,0.211116]
[1736374670192,0.211094,94745.0,94734.0,0.211116]
[1736374671486,0.212094,94745.0,94734.0,0.211116]
[1736374671889,0.214094,94745.0,94734.0,0.211116]
[1736374672288,0.211095,94744.0,94721.0,0.23242701]
[1736374672671,0.211111,94737.0,94725.0,0.256636]
[1736374672853,0.211097,94743.0,94729.0,0.211128]
[1736374673008,0.211109,94738.0,94726.0,0.211135]
[1736374675886,0.211109,94738.0,94726.0,0.212135]
[1736374677144,0.211109,94738.0,94726.0,0.211135]
[1736374678537,0.211109,94738.0,94726.0,0.212135]
[1736374681264,0.211092,94746.0,94727.0,0.10429976]
[1736374681476,0.211092,94746.0,94727.0,0.10535531]
[1736374682698,0.211092,94746.0,94733.0,0.211117]
[1736374682854,0.214092,94746.0,94733.0,0.211117]
[1736374683921,0.215092,94746.0,94733.0,0.211117]
[1736374684255,0.214092,94746.0,94733.0,0.211117]
[1736374684704,0.212092,94746.0,94733.0,0.211117]
[1736374684908,0.22199987,94746.0,94733.0,0.211117]
[1736374685515,0.22499987,94746.0,94733.0,0.211117]
[1736374685752,0.004,94746.0,94734.0,0.18855522]
[1736374686185,0.004,94746.0,94743.0,0.211096]
[1736374686595,0.003,94746.0,94743.0,0.211096]
[1736374686801,0.004,94746.0,94743.0,0.211096]
[1736374687205,0.003,94746.0,94743.0,0.211096]
[1736374687620,0.004,94746.0,94740.0,0.211103]
[1736374687876,0.001,94746.0,94740.0,0.211103]
[1736374688078,0.004,94746.0,94740.0,0.211103]
[1736374688478,0.001,94746.0,94740.0,0.211103]
[1736374688876,0.001,94746.0,94740.0,0.214103]
[1736374689056,0.21108,94751.0,94740.0,0.214103]
[1736374689459,0.21108,94751.0,94743.0,0.001]
[1736374689886,0.211089,94747.0,94740.0,0.003]
[1736374690093,0.211101,94742.0,94740.0,0.003]
[1736374690292,0.10429976,94741.0,94740.0,0.003]
[1736374690525,0.0578,94756.0,94740.0,0.003]
[1736374690772,0.211094,94745.0,94733.0,0.045]
[1736374690992,0.211094,94745.0,94740.0,0.001]
[1736374691444,0.211094,94745.0,94740.0,0.002]
[1736374691645,0.211094,94745.0,94740.0,0.001]
[1736374692122,0.215094,94745.0,94731.0,0.211123]
[1736374692325,0.422188,94745.0,94731.0,0.211123]
[1736374692526,0.0802,94746.0,94727.0,0.211132]
[1736374692706,0.174866,94754.0,94731.0,0.211123]
[1736374692879,0.174866,94754.0,94733.0,0.18911899]
[1736374692880,0.004,94745.0,94733.0,0.18911899]
[1736374693299,0.006,94745.0,94733.0,0.18911899]
[1736374693680,0.006,94745.0,94739.0,0.211105]
[1736374693884,0.004,94745.0,94739.0,0.211105]
[1736374694087,0.004,94745.0,94743.0,0.211096]
[1736374694286,0.004,94745.0,94740.0,0.0829]
[1736374694815,0.305744,94752.0,94740.0,0.0829]
[1736374695020,0.004,94745.0,94740.0,0.0829]
[1736374695271,0.002,94745.0,94740.0,0.0829]
[1736374695689,0.211078,94752.0,94740.0,0.0829]
[1736374696071,0.213078,94752.0,94740.0,0.0829]
[1736374696515,0.211087,94748.0,94740.0,0.0829]
[1736374696719,0.211079,94751.0,94740.0,0.0829]
[1736374696935,0.211079,94751.0,94741.0,0.21215639]
[1736374697153,0.211079,94751.0,94741.0,0.211101]
[1736374697360,0.211079,94751.0,94740.0,0.0829]
[1736374698011,0.211079,94751.0,94740.0,0.06089999]
[1736374698420,0.001,94748.0,94740.0,0.06089999]
[1736374698978,0.214079,94751.0,94740.0,0.06089999]
[1736374699390,0.212079,94751.0,94740.0,0.06089999]
[1736374699598,0.001,94748.0,94740.0,0.06089999]
[1736374701035,0.212079,94751.0,94740.0,0.06089999]
[1736374701257,0.214079,94751.0,94740.0,0.06089999]
[1736374701430,0.001,94748.0,94740.0,0.06089999]
[1736374701841,0.002,94748.0,94740.0,0.06089999]
[1736374702060,0.001,94748.0,94740.0,0.06089999]